[Event "*** Titled Tuesday 3|2 Blitz"]
[Site "Chess.com"]
[Date "2017.03.07"]
[Round "3"]
[White "Robin-Side"]
[Black "Elshan1985"]
[Result "1/2-1/2"]
[WhiteElo "2454"]
[BlackElo "2490"]
[TimeControl "180+2"]
[EndTime "13:41:47 PST"]
[Termination "Game drawn by repetition"]

1. d4 {[%clk 0:03:02]} 1... Nf6 {[%clk 0:03:00.4]} 2. Nc3 {[%clk 0:03:02.4]}
2... e6 {[%clk 0:03:02.3]} 3. e4 {[%clk 0:03:03.5]} 3... d5 {[%clk 0:03:03.9]}
4. Bg5 {[%clk 0:03:04.2]} 4... dxe4 {[%clk 0:03:00.2]} 5. Bxf6 {[%clk 0:03:05]}
5... gxf6 {[%clk 0:02:48.5]} 6. Nxe4 {[%clk 0:03:06]} 6... f5 {[%clk 0:02:49.9]}
7. Ng3 {[%clk 0:03:06.5]} 7... Bg7 {[%clk 0:02:50.2]} 8. Nf3 {[%clk 0:03:06.8]}
8... c5 {[%clk 0:02:50.6]} 9. c3 {[%clk 0:03:03.7]} 9... cxd4 {[%clk 0:02:51.7]}
10. Nxd4 {[%clk 0:03:02.5]} 10... Bxd4 {[%clk 0:02:51.8]} 11. Qxd4 {[%clk
0:03:04.2]} 11... Qxd4 {[%clk 0:02:52.1]} 12. cxd4 {[%clk 0:03:06.1]} 12... Nc6
{[%clk 0:02:52.5]} 13. O-O-O {[%clk 0:03:06.5]} 13... Nb4 {[%clk 0:02:31.4]} 14.
Bc4 {[%clk 0:02:55.5]} 14... Bd7 {[%clk 0:02:30.1]} 15. a3 {[%clk 0:02:51.9]}
15... Rc8 {[%clk 0:02:30.1]} 16. axb4 {[%clk 0:02:26.3]} 16... Rxc4+ {[%clk
0:02:29]} 17. Kb1 {[%clk 0:02:28]} 17... Rxb4 {[%clk 0:02:30.6]} 18. d5 {[%clk
0:02:27.9]} 18... Ke7 {[%clk 0:02:20.1]} 19. Rhe1 {[%clk 0:02:25.1]} 19... Kf6
{[%clk 0:02:13.5]} 20. dxe6 {[%clk 0:02:22.8]} 20... Bxe6 {[%clk 0:02:14.3]} 21.
Ne2 {[%clk 0:02:13.8]} 21... Rc8 {[%clk 0:01:37.4]} 22. Rd2 {[%clk 0:01:58.9]}
22... Rc5 {[%clk 0:01:25.5]} 23. Rc1 {[%clk 0:01:54.9]} 23... Rxc1+ {[%clk
0:01:20.2]} 24. Kxc1 {[%clk 0:01:56.8]} 24... Ke5 {[%clk 0:01:18.9]} 25. g3
{[%clk 0:01:55.8]} 25... Ke4 {[%clk 0:01:17]} 26. h4 {[%clk 0:01:47.9]} 26... a5
{[%clk 0:01:16.6]} 27. Nf4 {[%clk 0:01:46.7]} 27... Kf3 {[%clk 0:01:11.7]} 28.
Kc2 {[%clk 0:01:45.8]} 28... a4 {[%clk 0:01:05.3]} 29. Nd3 {[%clk 0:01:37.9]}
29... Bb3+ {[%clk 0:01:04.3]} 30. Kb1 {[%clk 0:01:36]} 30... Rb5 {[%clk
0:01:01.9]} 31. Ne1+ {[%clk 0:01:30.2]} 31... Ke4 {[%clk 0:01:03.1]} 32. Re2+
{[%clk 0:01:30.1]} 32... Kd4 {[%clk 0:01:01.5]} 33. Rd2+ {[%clk 0:01:28.1]}
33... Ke5 {[%clk 0:01:01]} 34. Re2+ {[%clk 0:01:27.9]} 34... Kf6 {[%clk
0:01:02]} 35. Kc1 {[%clk 0:01:10]} 35... Rc5+ {[%clk 0:01:00.2]} 36. Kd2 {[%clk
0:01:02.8]} 36... b5 {[%clk 0:01:00.8]} 37. Re8 {[%clk 0:00:56.2]} 37... Rd5+
{[%clk 0:00:57.3]} 38. Kc3 {[%clk 0:00:53.4]} 38... Rd1 {[%clk 0:00:56.4]} 39.
Re3 {[%clk 0:00:53.3]} 39... Bc4 {[%clk 0:00:49.8]} 40. Re8 {[%clk 0:00:50.7]}
40... f4 {[%clk 0:00:48.3]} 41. gxf4 {[%clk 0:00:39.6]} 41... Kf5 {[%clk
0:00:49.6]} 42. Ng2 {[%clk 0:00:39.2]} 42... Rd3+ {[%clk 0:00:49.2]} 43. Kc2
{[%clk 0:00:38.7]} 43... Rf3 {[%clk 0:00:48.5]} 44. Ne3+ {[%clk 0:00:35]} 44...
Kxf4 {[%clk 0:00:49.9]} 45. Nxc4 {[%clk 0:00:32.5]} 45... bxc4 {[%clk
0:00:51.1]} 46. Re2 {[%clk 0:00:32.9]} 46... Kg4 {[%clk 0:00:50.2]} 47. Re4+
{[%clk 0:00:28.6]} 47... Rf4 {[%clk 0:00:44.6]} 48. Rxf4+ {[%clk 0:00:16.4]}
48... Kxf4 {[%clk 0:00:45.8]} 49. Kc3 {[%clk 0:00:18.3]} 49... Kf3 {[%clk
0:00:47.5]} 50. Kxc4 {[%clk 0:00:19.8]} 50... Kxf2 {[%clk 0:00:49.2]} 51. Kb4
{[%clk 0:00:21.4]} 51... f5 {[%clk 0:00:50.5]} 52. Kxa4 {[%clk 0:00:20.1]} 52...
f4 {[%clk 0:00:52.1]} 53. b4 {[%clk 0:00:21.5]} 53... f3 {[%clk 0:00:53.7]} 54.
b5 {[%clk 0:00:23.1]} 54... Kg3 {[%clk 0:00:55.3]} 55. b6 {[%clk 0:00:24.5]}
55... f2 {[%clk 0:00:56.8]} 56. b7 {[%clk 0:00:25.9]} 56... f1=Q {[%clk
0:00:57.6]} 57. b8=Q+ {[%clk 0:00:27.2]} 57... Kxh4 {[%clk 0:00:58]} 58. Qd8+
{[%clk 0:00:24.4]} 58... Kh5 {[%clk 0:00:58.8]} 59. Qd5+ {[%clk 0:00:21]} 59...
Kg6 {[%clk 0:00:59.8]} 60. Qg8+ {[%clk 0:00:20.6]} 60... Kh6 {[%clk 0:01:01.1]}
61. Qe6+ {[%clk 0:00:20.8]} 61... Kh5 {[%clk 0:01:00.5]} 62. Qe8+ {[%clk
0:00:20.1]} 62... Kg5 {[%clk 0:00:57.1]} 63. Qg8+ {[%clk 0:00:20.2]} 63... Kh6
{[%clk 0:00:58.4]} 64. Qe6+ {[%clk 0:00:20.3]} 64... Kg7 {[%clk 0:00:59.7]} 65.
Qg4+ {[%clk 0:00:19.6]} 65... Kf7 {[%clk 0:00:58.2]} 66. Qd7+ {[%clk 0:00:20.4]}
66... Kg6 {[%clk 0:00:59.1]} 67. Qg4+ {[%clk 0:00:21.3]} 67... Kf6 {[%clk
0:00:57.8]} 68. Qh4+ {[%clk 0:00:22.4]} 68... Kg6 {[%clk 0:00:57.8]} 69. Qg4+
{[%clk 0:00:23.2]} 69... Kf7 {[%clk 0:00:59.3]} 70. Qh5+ {[%clk 0:00:24]} 70...
Kg8 {[%clk 0:00:58.6]} 71. Qg4+ {[%clk 0:00:21.2]} 71... Kh8 {[%clk 0:00:59]}
72. Qd4+ {[%clk 0:00:19.7]} 72... Kg8 {[%clk 0:00:59.3]} 73. Qg4+ {[%clk
0:00:20.8]} 73... Kf8 {[%clk 0:01:00.6]} 74. Qc8+ {[%clk 0:00:19.9]} 74... Kg7
{[%clk 0:01:01.9]} 75. Qg4+ {[%clk 0:00:21]} 75... Kf7 {[%clk 0:01:03.1]} 76.
Qh5+ {[%clk 0:00:21.8]} 76... Kg7 {[%clk 0:01:04.3]} 77. Qg5+ {[%clk 0:00:22.2]}
77... Kf8 {[%clk 0:01:04.6]} 78. Qh6+ {[%clk 0:00:22.3]} 78... Kg8 {[%clk
0:01:05.8]} 79. Qg5+ {[%clk 0:00:23.6]} 79... Kh8 {[%clk 0:01:03.8]} 80. Qe5+
{[%clk 0:00:23.2]} 80... Kg8 {[%clk 0:01:04.5]} 81. Qg5+ {[%clk 0:00:24.4]}
81... Kf7 {[%clk 0:01:05.7]} 82. Qh5+ {[%clk 0:00:25.5]} 82... Kg7 {[%clk
0:01:06.9]} 83. Qg5+ {[%clk 0:00:23.3]} 83... Kf8 {[%clk 0:01:07.9]} 84. Qh6+
{[%clk 0:00:24]} 84... Kg8 {[%clk 0:01:08.6]} 85. Qg5+ {[%clk 0:00:24.4]}
1/2-1/2

[Event "*** Titled Tuesday 3|2 Blitz"]
[Site "Chess.com"]
[Date "2017.03.07"]
[Round "3"]
[White "x-3738459472"]
[Black "Zhani-Z"]
[Result "0-1"]
[WhiteElo "2474"]
[BlackElo "2323"]
[TimeControl "180+2"]
[EndTime "13:41:47 PST"]
[Termination "Zhani-Z won by resignation"]

1. e4 {[%clk 0:02:45.6]} 1... e5 {[%clk 0:03:00.3]} 2. Nf3 {[%clk 0:02:46.4]}
2... Nc6 {[%clk 0:03:01.8]} 3. Bb5 {[%clk 0:02:47.8]} 3... a6 {[%clk 0:03:02]}
4. Ba4 {[%clk 0:02:48.4]} 4... Nf6 {[%clk 0:03:03.6]} 5. d3 {[%clk 0:02:49.3]}
5... b5 {[%clk 0:03:03.2]} 6. Bb3 {[%clk 0:02:50]} 6... Bc5 {[%clk 0:03:04.7]}
7. Nc3 {[%clk 0:02:46.7]} 7... O-O {[%clk 0:03:03.2]} 8. Bg5 {[%clk 0:02:40.1]}
8... h6 {[%clk 0:02:54.6]} 9. Be3 {[%clk 0:02:34.7]} 9... d6 {[%clk 0:02:50.9]}
10. Qd2 {[%clk 0:02:33.1]} 10... Bxe3 {[%clk 0:02:43.2]} 11. fxe3 {[%clk
0:02:33.3]} 11... Be6 {[%clk 0:02:35.6]} 12. O-O {[%clk 0:02:28.6]} 12... Ne7
{[%clk 0:02:21.6]} 13. Nh4 {[%clk 0:02:12.3]} 13... Bxb3 {[%clk 0:02:11.9]} 14.
axb3 {[%clk 0:02:12.6]} 14... d5 {[%clk 0:02:09.1]} 15. exd5 {[%clk 0:01:59.5]}
15... Nexd5 {[%clk 0:02:08.5]} 16. Nf5 {[%clk 0:01:59.4]} 16... Re8 {[%clk
0:02:04]} 17. h3 {[%clk 0:01:56.3]} 17... Re6 {[%clk 0:02:02.9]} 18. Qf2 {[%clk
0:01:54.1]} 18... Kh7 {[%clk 0:01:50]} 19. Qg3 {[%clk 0:01:46.8]} 19... g6
{[%clk 0:01:45.1]} 20. Nh4 {[%clk 0:01:43.2]} 20... Nxc3 {[%clk 0:01:36]} 21.
bxc3 {[%clk 0:01:43.9]} 21... Qe7 {[%clk 0:01:21.8]} 22. Rf2 {[%clk 0:01:33.7]}
22... Rg8 {[%clk 0:00:54.9]} 23. Raf1 {[%clk 0:01:33.4]} 23... Rg7 {[%clk
0:00:55.8]} 24. e4 {[%clk 0:01:22.3]} 24... a5 {[%clk 0:00:41.9]} 25. Kh2 {[%clk
0:01:20.8]} 25... a4 {[%clk 0:00:32.9]} 26. bxa4 {[%clk 0:01:19.4]} 26... bxa4
{[%clk 0:00:33.7]} 27. Rf3 {[%clk 0:01:17.4]} 27... a3 {[%clk 0:00:33.1]} 28.
Qf2 {[%clk 0:01:18.1]} 28... a2 {[%clk 0:00:28.1]} 29. Ra1 {[%clk 0:01:14.9]}
29... Ra6 {[%clk 0:00:26.9]} 30. Qe1 {[%clk 0:01:01.3]} 30... Nh5 {[%clk
0:00:25.5]} 31. g3 {[%clk 0:00:58.7]} 31... Rg8 {[%clk 0:00:22.1]} 32. Qf1
{[%clk 0:00:56.5]} 32... Kg7 {[%clk 0:00:22.3]} 33. d4 {[%clk 0:00:57.4]} 33...
Rga8 {[%clk 0:00:22]} 34. dxe5 {[%clk 0:00:56.5]} 34... Nxg3 {[%clk 0:00:20.6]}
35. Rxg3 {[%clk 0:00:51.4]} 35... Qxh4 {[%clk 0:00:20.8]} 36. Qf2 {[%clk
0:00:52.7]} 36... Qe7 {[%clk 0:00:21.2]} 37. Qf4 {[%clk 0:00:48.9]} 37... Ra5
{[%clk 0:00:21.9]} 38. e6 {[%clk 0:00:45.7]} 38... Qxe6 {[%clk 0:00:22.2]} 39.
Qxc7 {[%clk 0:00:44.8]} 39... Re5 {[%clk 0:00:21.2]} 40. Qb7 {[%clk 0:00:39.3]}
40... Raa5 {[%clk 0:00:19.2]} 41. Rf3 {[%clk 0:00:33.4]} 41... Rxe4 {[%clk
0:00:18.7]} 42. Rxf7+ {[%clk 0:00:34.2]} 42... Qxf7 {[%clk 0:00:19.8]} 43. Qxe4
{[%clk 0:00:36.1]} 43... Qf2+ {[%clk 0:00:20.6]} 44. Kh1 {[%clk 0:00:37.4]}
44... Rf5 {[%clk 0:00:18.5]} 45. Qg2 {[%clk 0:00:32.6]} 45... Qa7 {[%clk
0:00:18.1]} 46. Qd2 {[%clk 0:00:23.5]} 46... Kh7 {[%clk 0:00:15.9]} 47. Qg2
{[%clk 0:00:15.3]} 47... Rf2 {[%clk 0:00:16.2]} 48. Qe4 {[%clk 0:00:15.4]} 48...
Rf7 {[%clk 0:00:17]} 49. Qg2 {[%clk 0:00:15.1]} 49... Qa5 {[%clk 0:00:17.1]} 50.
Rg1 {[%clk 0:00:14.8]} 50... Qf5 {[%clk 0:00:16.3]} 51. Ra1 {[%clk 0:00:14.5]}
51... Qe6 {[%clk 0:00:15.5]} 52. c4 {[%clk 0:00:14.8]} 52... Qxc4 {[%clk
0:00:15.4]} 53. Rg1 {[%clk 0:00:15.9]} 53... Qe6 {[%clk 0:00:16.1]} 54. Ra1
{[%clk 0:00:16.4]} 54... Rc7 {[%clk 0:00:16.9]} 55. c3 {[%clk 0:00:16.3]} 55...
Ra7 {[%clk 0:00:16.2]} 56. Qf2 {[%clk 0:00:15.7]} 56... Qc6+ {[%clk 0:00:14.8]}
57. Kh2 {[%clk 0:00:16.3]} 57... Qd6+ {[%clk 0:00:14.4]} 58. Qg3 {[%clk
0:00:17.7]} 58... Qxg3+ {[%clk 0:00:15.2]} 59. Kxg3 {[%clk 0:00:18.7]} 59... Kg7
{[%clk 0:00:15.6]} 60. Kf3 {[%clk 0:00:20.6]} 60... Kf6 {[%clk 0:00:16.6]} 61.
Ke4 {[%clk 0:00:22.5]} 61... Kg5 {[%clk 0:00:17.8]} 62. c4 {[%clk 0:00:23.3]}
62... Kh4 {[%clk 0:00:18.8]} 63. Kd5 {[%clk 0:00:24.6]} 63... Kxh3 {[%clk
0:00:19.3]} 64. c5 {[%clk 0:00:26.5]} 64... g5 {[%clk 0:00:20.4]} 65. c6 {[%clk
0:00:28.1]} 65... g4 {[%clk 0:00:21.1]} 66. Kc5 {[%clk 0:00:30]} 66... g3 {[%clk
0:00:21.7]} 67. Kb6 {[%clk 0:00:31.9]} 67... Rh7 {[%clk 0:00:21.8]} 68. Rxa2
{[%clk 0:00:32.4]} 68... g2 {[%clk 0:00:22.7]} 69. Ra1 {[%clk 0:00:33.7]} 69...
Kh2 {[%clk 0:00:23.3]} 70. Ra2 {[%clk 0:00:34.7]} 70... Kh1 {[%clk 0:00:23.9]}
71. Ra5 {[%clk 0:00:31.3]} 71... g1=Q+ {[%clk 0:00:23.4]} 0-1

[Event "*** Titled Tuesday 3|2 Blitz"]
[Site "Chess.com"]
[Date "2017.03.07"]
[Round "3"]
[White "Misha_Bilous"]
[Black "silverback96"]
[Result "1/2-1/2"]
[WhiteElo "2267"]
[BlackElo "2068"]
[TimeControl "180+2"]
[EndTime "13:44:11 PST"]
[Termination "Game drawn - insufficient material"]

1. d4 {[%clk 0:03:00.3]} 1... Nf6 {[%clk 0:03:00.5]} 2. c4 {[%clk 0:02:54.6]}
2... c5 {[%clk 0:03:01.2]} 3. d5 {[%clk 0:02:49.5]} 3... b5 {[%clk 0:03:01.9]}
4. cxb5 {[%clk 0:02:50.7]} 4... a6 {[%clk 0:03:03.3]} 5. bxa6 {[%clk 0:02:51.9]}
5... g6 {[%clk 0:03:03.4]} 6. Nc3 {[%clk 0:02:52.8]} 6... Bg7 {[%clk 0:03:04.3]}
7. e4 {[%clk 0:02:51.4]} 7... Qa5 {[%clk 0:03:04.3]} 8. Bd2 {[%clk 0:02:40.3]}
8... Bxa6 {[%clk 0:03:04.4]} 9. Bxa6 {[%clk 0:02:30.9]} 9... Nxa6 {[%clk
0:02:56.4]} 10. e5 {[%clk 0:02:16.1]} 10... Nh5 {[%clk 0:02:25.1]} 11. g4 {[%clk
0:02:05.2]} 11... Nb4 {[%clk 0:02:16.5]} 12. gxh5 {[%clk 0:01:57.8]} 12... Qa6
{[%clk 0:02:09.7]} 13. Nge2 {[%clk 0:01:34.3]} 13... Nd3+ {[%clk 0:02:10.9]} 14.
Kf1 {[%clk 0:01:35.3]} 14... Bxe5 {[%clk 0:02:12.4]} 15. Qc2 {[%clk 0:01:10.7]}
15... Rb8 {[%clk 0:02:11.2]} 16. b3 {[%clk 0:01:04.2]} 16... c4 {[%clk
0:01:53.7]} 17. Rd1 {[%clk 0:00:55.1]} 17... Qf6 {[%clk 0:01:54]} 18. Be3 {[%clk
0:00:44.9]} 18... Qf5 {[%clk 0:01:40.9]} 19. bxc4 {[%clk 0:00:22.3]} 19... Qh3+
{[%clk 0:01:41.9]} 20. Kg1 {[%clk 0:00:23.6]} 20... Qg4+ {[%clk 0:01:34.2]} 21.
Ng3 {[%clk 0:00:24.8]} 21... Nb4 {[%clk 0:01:26.8]} 22. Qe2 {[%clk 0:00:22.1]}
22... Qh4 {[%clk 0:01:22.3]} 23. Nce4 {[%clk 0:00:20.4]} 23... f5 {[%clk
0:01:17]} 24. Ng5 {[%clk 0:00:18.9]} 24... f4 {[%clk 0:00:35.8]} 25. Nf3 {[%clk
0:00:19.8]} 25... Qf6 {[%clk 0:00:37.4]} 26. Nxe5 {[%clk 0:00:20.9]} 26... Qxe5
{[%clk 0:00:38.8]} 27. Bd4 {[%clk 0:00:18.5]} 27... Qxe2 {[%clk 0:00:33.9]} 28.
Nxe2 {[%clk 0:00:19.6]} 28... Rf8 {[%clk 0:00:35.8]} 29. hxg6 {[%clk 0:00:20.9]}
29... hxg6 {[%clk 0:00:35.1]} 30. f3 {[%clk 0:00:22.2]} 30... Nc2 {[%clk
0:00:35.4]} 31. Kf2 {[%clk 0:00:20.3]} 31... Nxd4 {[%clk 0:00:34.3]} 32. Rxd4
{[%clk 0:00:21.3]} 32... Rb2 {[%clk 0:00:36.2]} 33. Rg1 {[%clk 0:00:21.3]} 33...
Rf6 {[%clk 0:00:35.6]} 34. a4 {[%clk 0:00:16.4]} 34... Ra2 {[%clk 0:00:36.4]}
35. c5 {[%clk 0:00:17.3]} 35... Kf7 {[%clk 0:00:34.5]} 36. Rgd1 {[%clk
0:00:18.1]} 36... g5 {[%clk 0:00:34.3]} 37. R1d2 {[%clk 0:00:18.1]} 37... Ra1
{[%clk 0:00:34.9]} 38. h4 {[%clk 0:00:18.1]} 38... Rh6 {[%clk 0:00:35.3]} 39. c6
{[%clk 0:00:12.3]} 39... Rxh4 {[%clk 0:00:33.4]} 40. Rd1 {[%clk 0:00:07.6]}
40... Rh2+ {[%clk 0:00:30.2]} 41. Kf1 {[%clk 0:00:08.7]} 41... Rh1+ {[%clk
0:00:29.1]} 42. Ng1 {[%clk 0:00:09.8]} 42... Ra3 {[%clk 0:00:30]} 43. cxd7
{[%clk 0:00:07.8]} 43... Rxf3+ {[%clk 0:00:30.8]} 44. Ke2 {[%clk 0:00:08.2]}
44... Re3+ {[%clk 0:00:31.7]} 45. Kf2 {[%clk 0:00:08.4]} 45... Rh2+ {[%clk
0:00:30.9]} 46. Kf1 {[%clk 0:00:09.8]} 46... Rh8 {[%clk 0:00:30.8]} 47. d6
{[%clk 0:00:09.4]} 47... e5 {[%clk 0:00:30]} 48. Rc4 {[%clk 0:00:08.5]} 48...
Rd8 {[%clk 0:00:30.5]} 49. Rc8 {[%clk 0:00:08.5]} 49... Rxd7 {[%clk 0:00:31]}
50. Rc7 {[%clk 0:00:09.9]} 50... Ke6 {[%clk 0:00:32.6]} 51. Rxd7 {[%clk
0:00:11.1]} 51... Kxd7 {[%clk 0:00:34.5]} 52. Ne2 {[%clk 0:00:10.8]} 52... e4
{[%clk 0:00:33.4]} 53. Nd4 {[%clk 0:00:10.6]} 53... Rh3 {[%clk 0:00:33.3]} 54.
a5 {[%clk 0:00:06.7]} 54... f3 {[%clk 0:00:32.7]} 55. a6 {[%clk 0:00:06.3]}
55... Rh1+ {[%clk 0:00:32.7]} 56. Kf2 {[%clk 0:00:06.2]} 56... Rxd1 {[%clk
0:00:34.6]} 57. Nb3 {[%clk 0:00:04.6]} 57... Rxd6 {[%clk 0:00:35.1]} 58. Nc5+
{[%clk 0:00:04.2]} 58... Kc6 {[%clk 0:00:34.9]} 59. a7 {[%clk 0:00:03.4]} 59...
Rd8 {[%clk 0:00:35.6]} 60. Nxe4 {[%clk 0:00:04.9]} 60... Kb7 {[%clk 0:00:36.4]}
61. Nxg5 {[%clk 0:00:06]} 61... Kxa7 {[%clk 0:00:36.7]} 62. Nxf3 {[%clk
0:00:07.4]} 62... Kb6 {[%clk 0:00:38.4]} 63. Ke3 {[%clk 0:00:08.8]} 63... Kc5
{[%clk 0:00:40.1]} 64. Ke4 {[%clk 0:00:10.2]} 64... Re8+ {[%clk 0:00:40.6]} 65.
Kf4 {[%clk 0:00:10]} 65... Kd5 {[%clk 0:00:42.1]} 66. Kg4 {[%clk 0:00:08.5]}
66... Rf8 {[%clk 0:00:40.8]} 67. Ng5 {[%clk 0:00:08.6]} 67... Ke5 {[%clk
0:00:40.4]} 68. Nf3+ {[%clk 0:00:09.5]} 68... Ke4 {[%clk 0:00:41.3]} 69. Ng5+
{[%clk 0:00:10.7]} 69... Ke3 {[%clk 0:00:42.9]} 70. Kh5 {[%clk 0:00:09.5]} 70...
Rf6 {[%clk 0:00:36.2]} 71. Kg4 {[%clk 0:00:08.9]} 71... Ra6 {[%clk 0:00:25.2]}
72. Kf5 {[%clk 0:00:07.8]} 72... Ra5+ {[%clk 0:00:26.6]} 73. Kf6 {[%clk
0:00:07.7]} 73... Kf4 {[%clk 0:00:27.3]} 74. Ne6+ {[%clk 0:00:08.8]} 74... Kg4
{[%clk 0:00:28.4]} 75. Nd4 {[%clk 0:00:05.6]} 75... Rd5 {[%clk 0:00:27]} 76. Ne6
{[%clk 0:00:05.9]} 76... Rf5+ {[%clk 0:00:27.8]} 77. Ke7 {[%clk 0:00:06.3]}
77... Rf1 {[%clk 0:00:26.5]} 78. Kd6 {[%clk 0:00:07]} 78... Kf5 {[%clk 0:00:28]}
79. Nd4+ {[%clk 0:00:06.4]} 79... Kf6 {[%clk 0:00:27.9]} 80. Kd5 {[%clk
0:00:06.6]} 80... Re1 {[%clk 0:00:28.9]} 81. Nc6 {[%clk 0:00:05.4]} 81... Rd1+
{[%clk 0:00:30.8]} 82. Nd4 {[%clk 0:00:06]} 82... Rd2 {[%clk 0:00:30.7]} 83. Ke4
{[%clk 0:00:05.9]} 83... Ra2 {[%clk 0:00:29.4]} 84. Kd5 {[%clk 0:00:06.6]} 84...
Ra5+ {[%clk 0:00:26.7]} 85. Ke4 {[%clk 0:00:07.4]} 85... Re5+ {[%clk 0:00:27.8]}
86. Kd3 {[%clk 0:00:08.2]} 86... Rh5 {[%clk 0:00:29.7]} 87. Ke4 {[%clk
0:00:08.3]} 87... Rh4+ {[%clk 0:00:30.4]} 88. Ke3 {[%clk 0:00:08.9]} 88... Ke5
{[%clk 0:00:31.3]} 89. Nf3+ {[%clk 0:00:09.9]} 89... Kd5 {[%clk 0:00:33.2]} 90.
Nxh4 {[%clk 0:00:11.7]} 1/2-1/2